Workbook

Sheet CRP
A2: HRTPO Carbon Reduction Program (CRP) Tracking Table - Revised as of 12/16/2025
A4: Jurisdiction/Agency | B4: UPC Number | C4: Project Name | D4: Year of Project Selection | E4: In Current FY 2024-2027 TIP | F4: In Current FY 2026-2031 SYIP | G4: Active Project | H4: FY-22 Allocation (Federal Share) | I4: FY-22 Allocation (State Match) | J4: FY-23 Allocation (Federal Share) | K4: FY-23 Allocation (State Match) | L4: FY-24 Allocation (Federal Share) | M4: FY-24 Allocation (State Match) | N4: FY-25 Allocation (Federal Share) | O4: FY-25 Allocation (State Match) | P4: FY-26 Allocation (Federal Share) | Q4: FY-26 Allocation (State Match) | R4: FY-27 Allocation (Federal Share) | S4: FY-27 Allocation (State Match) | T4: FY-28 Allocation (Federal Share) | U4: FY-28 Allocation (State Match) | V4: FY-29 Allocation (Federal Share) | W4: FY-29 Allocation (State Match) | X4: FY-30 Allocation (Federal Share) | Y4: FY-30 Allocation (State Match) | Z4: FY-31 Allocation (Federal Share) | AA4: FY-31 Allocation (State Match) | AB4: Total CRP Allocations
A5: HRT | B5: T22709 | C5: Victoria Bouelvard Facility Upgrades - Phase 2 | D5: 2024 | E5: Yes | F5: Yes | G5: Yes | L5: 80000 | M5: 20000 | N5: 717680 | O5: 179420 | AB5: =SUM(H5:AA5) -> 997100
A6: James City County | B6: 102980 | C6: US Route 60 (Pocahontas Trail) Widening and Complete Street | D6: 2023 | E6: Yes | F6: Yes | G6: Yes | H6: =800000-800000 -> 0 | I6: =200000-200000 -> 0 | J6: 800000 | K6: 200000 | AB6: =SUM(H6:AA6) -> 1000000
A7: James City County | B7: 115512 | C7: Longhill Road Shared Use Path - Phase 2 | D7: 2024 | E7: Yes | F7: Yes | G7: Yes | J7: 400000 | K7: 100000 | L7: 712000 | M7: 178000 | P7: 329483 | Q7: 82371 | AB7: 1801854
A8: Newport News | B8: 109076 | C8: Amtrak Multimodal Station - Station, Platform, Parking Lot (child project of UPC 102734) | D8: 2023 | E8: Yes | F8: Yes | G8: Closing | H8: 1765754 | I8: 441439 | AB8: 2207193
A9: Newport News | B9: 121108 | C9: Trail 757 Multi-Use Path - Yorktown Road to Newport News Park | D9: 2024 | E9: Yes | F9: Yes | G9: Yes | H9: 800000 | I9: 200000 | J9: =400000 -> 400000 | K9: =100000 -> 100000 | AB9: 1500000
A10: Norfolk | B10: 113866 | C10: Emergency Vehicle Preemption | D10: 2023 | E10: Yes | F10: Yes | G10: Closing | H10: 80000 | I10: 20000 | AB10: 100000
A11: Norfolk | B11: 125975 | C11: Signal System Upgrade for Incident Management | D11: 2024 | E11: Yes | F11: Yes | G11: Yes | L11: 596446 | M11: 149112 | N11: 800000 | O11: 200000 | P11: 800000 | Q11: 200000 | AB11: 2745558
A12: Port of Virginia | B12: 103928 | C12: Green Operator - Near Zero Emission Trucks | D12: 2023 | E12: Yes | F12: Yes | G12: Yes | H12: 382626 | I12: 95657 | J12: 2240377 | K12: 560094 | L12: 800000 | M12: 200000 | N12: 513901 | O12: 128475 | P12: =1086099-279654 -> 806445 | Q12: =271525-69914 -> 201611 | AB12: 5929186
A13: Virginia Beach | B13: 110802 | C13: Dam Neck Road/Holland Road Intersection Improvements | D13: 2023 | E13: Yes | F13: Yes | G13: Yes | H13: 520000 | I13: 130000 | AB13: 650000
A14: Virginia Beach | B14: 125974 | C14: Pacific Avenue at 17th Street and 22nd Street Improvements | D14: 2024 | E14: Yes | F14: Yes | G14: Yes | L14: 800000 | M14: 200000 | N14: 800000 | O14: 200000 | P14: 800000 | Q14: 200000 | AB14: 3000000
A15: WATA | B15: 127832 | C15: Electric/Hybrid Expansion Support Vehicle | D15: 2024 | E15: Yes | F15: Yes | G15: Yes | L15: 88000 | M15: 22000
A17: Total | H17: =SUM(H5:H14) -> 3548380 | I17: =SUM(I5:I14) -> 887096 | J17: =SUM(J5:J14) -> 3840377 | K17: =SUM(K5:K14) -> 960094 | L17: =SUM(L5:L15) -> 3076446 | M17: =SUM(M5:M15) -> 769112 | N17: =SUM(N5:N14) -> 2831581 | O17: 707895 | P17: 2735928 | Q17: 683982 | R17: 0 | S17: 0 | T17: 0 | U17: 0 | V17: 0 | W17: 0 | X17: 0 | Y17: 0 | Z17: 0 | AA17: 0 | AB17: =SUM(H17:AA17) -> 20040891
A19: HRTPO CRP Reserve Account | B19: T27909 | C19: HRTPO CRP Reserve Account (VDOT's Balance Entry) | H19: =800000-800000 -> 0 | I19: =200000-200000 -> 0 | J19: =800000-400000-400000 -> 0 | K19: =200000-100000-100000 -> 0 | L19: =800000-88000-712000 -> 0 | M19: =200000-22000-178000 -> 0 | N19: 0 | O19: 0 | P19: 0 | Q19: 0 | R19: =3075894-180363 -> 2895531 | S19: =768974-45091 -> 723883 | T19: =3137412-183970 -> 2953442 | U19: =784353-45993 -> 738360 | V19: =3200160-187650 -> 3012510 | W19: =800040-46912 -> 753128 | X19: =3264163-191402 -> 3072761 | Y19: =816041-47851 -> 768190 | Z19: 3134216 | AA19: 783554 | AB19: =SUM(H19:AA19) -> 18835575
A21: State CRP funds on UPC 123832 (below) - not tracked by the HRTPO
A22: York County | B22: 123832 | C22: I-64 Gap Widening - Segment C - Park and Ride | D22: 2024 | E22: Yes | F22: Yes | G22: Yes | H22: 2020713 | I22: 505178

Sheet HIP-CRRSA and CRP (hidden)
A3: Receive HIP-CRRSA (even RSTP swap) | B3: FY 2022 | C3: Transfer UPC T16054 to UPC 111036 | D3: 2000000 | E3: HIP-CRRSA funds transferred on 1/26/2024 through even swaps with out-year RSTP funds. HIP-CRRSA funds were to be rescinded if not obligated by 5/31/2023 - VDOT CO made the transfers on 5/31/2023 with projects that could obligate the HIP-CRRSA funds immediately. TPO Amendment on 3/21/2024 to do transfer
A4: Transfer RSTP even swap with HIP-CRRSA | B4: FY 2023 | C4: From UPC 111036 to UPC T16054 | D4: $40,000, plus $10,000 RSTP match | E4: HIP-CRRSA funds transferred on 1/26/2024 through even swaps with out-year RSTP funds. HIP-CRRSA funds were to be rescinded if not obligated by 5/31/2023 - VDOT CO made the transfers on 5/31/2023 with projects that could obligate the HIP-CRRSA funds immediately. TPO Amendment on 3/21/2024 to do transfer
A5: Transfer RSTP even swap with HIP-CRRSA | B5: FY 2024 | C5: From UPC 111036 to UPC T16054 | D5: $1,560,000, plus $390,000 RSTP match | E5: HIP-CRRSA funds transferred on 1/26/2024 through even swaps with out-year RSTP funds. HIP-CRRSA funds were to be rescinded if not obligated by 5/31/2023 - VDOT CO made the transfers on 5/31/2023 with projects that could obligate the HIP-CRRSA funds immediately. TPO Amendment on 3/21/2024 to do transfer
A7: Transfer RSTP even swap with HIP-CRRSA | B7: FY 2025 | C7: From UPC 69050 to UPC T16054 | D7: $782,030, plus $195,508 RSTP match | E7: HIP-CRRSA funds transferred on 1/26/2024 through even swaps with out-year RSTP funds. HIP-CRRSA funds were to be rescinded if not obligated by 5/31/2023 - VDOT CO made the transfers on 5/31/2023 with projects that could obligate the HIP-CRRSA funds immediately. TPO Amendment on 3/21/2024 to do transfer
A8: Transfer RSTP even swap with HIP-CRRSA | B8: FY 2022 | C8: UPC 69050 - receive from UPC T16054 | D8: HIP-CRRSA $977,538 | E8: HIP-CRRSA funds transferred on 1/26/2024 through even swaps with out-year RSTP funds. HIP-CRRSA funds were to be rescinded if not obligated by 5/31/2023 - VDOT CO made the transfers on 5/31/2023 with projects that could obligate the HIP-CRRSA funds immediately. TPO Amendment on 3/21/2024 to do transfer
A10: HIP-CRRSA Allocation in Reserve | B10: FY 2022 | D10: 220759 | E10: $220,759 transferred to UPC 69050 - VDOT stated these funds in the reserve after the original HIP-CRRSA funds allocated in 2021. TPO staff was unaware of this. Funds now transferred to UPC 69050 and swapping RSTP Reserve funds - 1/18/2024 TIP Amendment.
A11: HIP-CRRSA Allocation | B11: FY 2022 | C11: PO 107035 | D11: 1584234 | E11: $1,034,234 transferred to UPC 69050 $550,000 obligated immediately by UPC 107035
A12: HIP-CRRSA Allocation | B12: FY 2022 | C12: GL 110627 | D12: 1000000 | E12: Obligated immediately UPC 110627
A13: HIP-CRRSA Allocation | B13: FY 2022 | C13: JC 102980 | D13: 2619574 | E13: $914,044 transferred to UPC 69050 $1,560,530 transferred to UPC 112318 $145,000 obligated immediately by UPC 102980
A14: HIP-CRRSA Allocation | B14: FY 2022 | C14: HRT T16054 | D14: 2977538 | E14: $2,000,000 transferred to UPC 111036 $977,538 transferred to UPC 69050
A15: HIP-CRRSA Allocation | B15: FY 2022 | C15: VB 112317 | D15: 1901573 | E15: $1,501,573 transferred to UPC 69050 $400,000 obligated immediately by UPC 112317
A16: HIP-CRRSA Allocation | B16: FY 2022 | C16: CH 115423 | D16: 1000000 | E16: $1,000,000 transferred to UPC 69050 - VDOT had this in the reserve and transferred to UPC 115423 in 9/2021; however, it was an allocation to 115423 from the start as the original allocation.
D17: =SUM(D10:D16) -> 11303678 | E17: 11303678
A19: HIP >200K (CRRSA) Allocation | B19: FY 2022 | C19: VB 112317 | D19: 2035514 | E19: Per VDOT this into CRRSA only HIP - already corrected with new TIP data in FY 2024-2027
A24: July 20, 2023 Approval
A25: CRP Allocation | B25: FY 2022 | C25: JC 102980 | D25: 1000000
A26: CRP Allocation | B26: FY 2023 | C26: JC 102980 | D26: 1000000
A27: CRP Allocation | B27: FY 2022 | C27: POV 103928 | D27: 478283
A28: CRP Allocation | B28: FY 2023 | C28: POV 103928 | D28: 2800471
A29: CRP Allocation | B29: FY 2022 | C29: NN 109076 | D29: 2207193
A30: CRP Allocation | B30: FY 2022 | C30: VB 110802 | D30: 650000
A31: CRP Allocation | B31: FY 2022 | C31: NO 113866 | D31: 100000
